bitfinex-derivatives/quotes_SOLF0:USTF0_20241218
["timestamp","ask_amount","ask_price","bid_price","bid_amount"]
[1734525244361,17.94952014,216.46,216.34,5.52865515]
[1734525244660,2.3095,216.53,216.42,2.3105]
[1734525244853,17.94952014,216.59,216.4,2.5]
[1734525245058,17.94952014,216.59,216.41,2.5]
[1734525245456,2.5,216.67,216.41,2.5]
[1734525245658,52.78,216.74,216.52,2.3095]
[1734525245659,2.3085,216.63,216.52,2.3095]
[1734525245860,2.3085,216.63,216.53,7.1841]
[1734525246052,20.44952014,216.64,216.53,4.6841]
[1734525248860,17.94952014,216.6,216.53,4.6841]
[1734525249064,2.5,216.59,216.53,4.6841]
[1734525249963,2.5,216.65,216.53,4.6841]
[1734525250963,2.3089,216.59,216.53,4.6841]
[1734525251569,2.5,216.65,216.53,4.6841]
[1734525251865,2.5,216.65,216.53,7.1841]
[1734525253155,2.5,216.65,216.53,3.1111]
[1734525253559,2.3086,216.62,216.53,3.1111]
[1734525253765,2.5,216.65,216.53,3.1111]
[1734525254163,2.5,216.65,216.54,2.5]
[1734525254558,2.5,216.65,216.55,1.4876]
[1734525254762,2.3083,216.64,216.57,2.309]
[1734525254962,2.5,216.65,216.55,1.4876]
[1734525255567,2.3086,216.61,216.55,3.7968]
[1734525255769,2.5,216.65,216.55,1.4876]
[1734525256067,11.26449561,216.63,216.55,1.4876]
[1734525256369,11.26449561,216.63,216.56,2.3091]
[1734525256370,2.3085,216.62,216.56,2.3091]
[1734525256968,2.3086,216.61,216.55,1.4876]
[1734525257358,11.26449561,216.63,216.55,1.4876]
[1734525257867,13.57299561,216.63,216.57,2.309]
[1734525258064,13.57299561,216.63,216.55,1.4876]
[1734525258065,11.26449561,216.63,216.55,1.4876]
[1734525258462,52.78,216.74,216.56,11.26449561]
[1734525258666,11.26449561,216.7,216.57,2.5]
[1734525259070,13.57219561,216.7,216.64,2.3083]
[1734525259270,2.5,216.73,216.6,11.26449561]
[1734525259567,2.3078,216.69,216.6,11.26449561]
[1734525259868,11.26449561,216.71,216.59,8.15026473]
[1734525260170,18.01387295,216.72,216.59,8.15026473]
[1734525260361,2.308,216.67,216.61,2.3085]
[1734525260564,2.308,216.67,216.59,8.15026473]
[1734525260765,2.3082,216.65,216.59,5.65026473]
[1734525260966,20.51387295,216.68,216.59,5.65026473]
[1734525261362,2.3087,216.6,216.55,1.4876]
[1734525261663,2.5,216.63,216.55,1.4876]
[1734525262368,2.5,216.67,216.55,1.4876]
[1734525262674,2.5,216.68,216.56,18.01387295]
[1734525262969,2.3075,216.71,216.57,2.5]
[1734525263169,2.5,216.72,216.57,2.5]
[1734525263670,2.3076,216.71,216.65,2.3081]
[1734525263871,2.5,216.72,216.57,2.5]
[1734525265567,2.5,216.72,216.61,2.3085]
[1734525265568,2.3077,216.7,216.61,2.3085]
[1734525265770,2.5,216.72,216.57,2.5]
[1734525265771,18.01387295,216.74,216.62,3.0492]
[1734525265973,2.5,216.73,216.62,3.0492]
[1734525266276,18.01387295,216.74,216.62,5.5492]
[1734525266277,2.3075,216.72,216.62,5.5492]
[1734525267171,2.5,216.71,216.62,3.0492]
[1734525267672,2.5,216.71,216.64,2.3082]
[1734525267871,2.3078,216.69,216.64,2.3082]
[1734525268070,2.5,216.71,216.62,3.0492]
[1734525268469,2.3076,216.7,216.62,3.0492]
[1734525270070,2.3076,216.7,216.65,2.3081]
[1734525270377,2.3082,216.65,216.62,3.0492]
[1734525270670,2.5,216.71,216.62,3.0492]
[1734525271076,2.3081,216.66,216.62,5.3577]
[1734525272678,2.5,216.71,216.62,3.0492]
[1734525272679,2.3079,216.68,216.62,3.0492]
[1734525272871,2.5,216.71,216.62,3.0492]
[1734525273776,2.3078,216.69,216.65,2.3082]
[1734525273974,2.5,216.71,216.62,3.0492]
[1734525274169,2.5,216.75,216.62,3.0492]
[1734525274479,2.5,216.79,216.64,18.01387295]
[1734525274879,2.5,216.79,216.65,1.4718]
[1734525275180,2.5,216.81,216.68,18.01387295]
[1734525275567,2.5,216.81,216.72,18.01387295]
[1734525275769,2.5,216.81,216.73,3.1471]
[1734525276571,2.5,216.81,216.77,2.3068]
[1734525276772,4.806,216.85,216.73,3.1471]
[1734525276970,2.5,216.85,216.74,1.5771]
[1734525277379,2.5,216.85,216.8,2.3065]
[1734525277577,18.01387295,216.92,216.74,1.5771]
[1734525277778,2.5,216.91,216.74,1.5771]
[1734525278076,2.3057,216.89,216.83,2.3062]
[1734525278280,2.5,216.89,216.83,2.3062]
[1734525278582,2.3057,216.88,216.83,2.3062]
[1734525278878,18.01387295,216.92,216.84,2.3061]
[1734525279175,18.01387295,216.88,216.73,3.1471]
[1734525279378,18.01387295,216.88,216.77,2.3069]
[1734525279576,2.3059,216.86,216.73,21.16097295]
[1734525279775,2.5,216.86,216.73,21.16097295]
[1734525280178,2.5,216.86,216.75,5.5514964]
[1734525280378,2.5,216.86,216.76,2.5]
[1734525280782,2.3062,216.84,216.76,2.5]
[1734525281279,2.5,216.86,216.76,2.5]
[1734525282474,2.5,216.86,216.84,2.306]
[1734525282671,52.78,216.99,216.81,2.5]
[1734525282875,20.51387295,216.98,216.82,2.9846]
[1734525283181,2.305,216.95,216.89,2.3056]
[1734525283379,2.305,216.95,216.83,1.5566]
[1734525283780,2.3051,216.94,216.88,2.3057]
[1734525285880,2.3052,216.93,216.88,2.3057]
[1734525286078,2.5,216.95,216.83,1.5566]
[1734525286282,2.3059,216.87,216.83,1.5566]
[1734525286681,2.5,216.9,216.83,3.8628]
[1734525288483,2.3057,216.88,216.83,3.8628]
[1734525289686,2.5,216.9,216.83,1.5566]
[1734525289882,2.5,216.92,216.87,2.3058]
[1734525290180,2.5,216.97,216.83,1.5566]
[1734525290382,2.305,216.95,216.9,2.3054]
[1734525290780,18.01387295,216.92,216.65,4.6163]
[1734525291081,18.01387295,216.84,216.68,18.01387295]
[1734525291282,2.5,216.83,216.72,5.44653665]
[1734525291976,2.307,216.76,216.72,5.44653665]
[1734525292180,2.5,216.75,216.67,4.4982]
[1734525292985,2.5,216.75,216.71,5.57107636]
[1734525294985,2.5,216.75,216.71,7.87857636]
[1734525295186,2.5,216.75,216.71,5.57107636]
[1734525296088,2.5,216.75,216.72,2.3073]
[1734525296482,2.5,216.75,216.71,5.57107636]
[1734525296678,2.5,216.75,216.71,7.87857636]
[1734525297687,4.8071,216.75,216.71,5.57107636]
[1734525298784,2.3074,216.73,216.67,4.4982]
[1734525300282,2.5,216.75,216.62,0.42982]
[1734525300490,2.5,216.75,216.64,5.57183053]
[1734525300684,2.5,216.75,216.62,0.42982]
[1734525300685,2.3082,216.65,216.62,0.42982]
[1734525301384,2.5,216.66,216.62,0.42982]
[1734525302088,2.3084,216.63,216.62,0.42982]
[1734525302289,18.01387295,216.68,216.62,0.42982]
[1734525302483,2.5,216.67,216.62,0.42982]
[1734525302685,4.8082,216.66,216.62,0.42982]
[1734525302881,2.5,216.66,216.62,0.42982]
[1734525305089,2.3084,216.63,216.62,0.42982]
[1734525305385,2.3084,216.63,216.49,1.4661]
[1734525305386,18.01387295,216.64,216.49,1.4661]
[1734525305585,18.01387295,216.64,216.48,2.31]
[1734525305787,18.01387295,216.64,216.43,20.99847295]
[1734525305989,18.01387295,216.6,216.43,20.99847295]
[1734525306184,2.48,216.59,216.46,5.43024923]
[1734525306389,2.48,216.59,216.43,2.9846]
[1734525306691,2.3099,216.49,216.44,2.3104]
[1734525306886,2.48,216.49,216.43,2.9846]
[1734525307083,2.48,216.49,216.45,5.61372395]
[1734525307491,2.5,216.5,216.45,5.61372395]
[1734525307891,2.5,216.5,216.45,7.92402395]
[1734525308087,18.01387295,216.48,216.12,76.61966157]
[1734525308390,18.01387295,216.48,216.27,4.4701]
[1734525308589,2.5,216.47,216.34,2.3114]
[1734525308796,2.5,216.47,216.3,23.47284648]
[1734525309486,2.5,216.46,216.3,23.47284648]
[1734525310090,7.92270689,216.46,216.3,23.47284648]
[1734525310284,18.01387295,216.48,216.3,23.47284648]
[1734525310494,2.5,216.47,216.3,23.47284648]
[1734525310787,2.5,216.47,216.38,2.311]
[1734525310788,2.3102,216.46,216.38,2.311]
[1734525311191,2.5,216.47,216.3,23.47284648]
[1734525311998,2.5,216.47,216.36,2.3112]
[1734525312288,2.5,216.47,216.3,23.47284648]
[1734525313397,2.3107,216.42,216.34,2.3114]
[1734525313592,2.3107,216.42,216.3,23.47284648]
[1734525313593,2.5,216.41,216.3,23.47284648]
[1734525314094,2.5,216.41,216.37,2.3111]
[1734525314990,2.5,216.41,216.3,23.47284648]
[1734525315495,2.5,216.41,216.3,5.45897353]
[1734525315694,2.3111,216.38,216.31,2.3117]
[1734525315892,2.5,216.41,216.27,4.4701]
[1734525316194,18.01387295,216.4,216.27,4.4701]
[1734525316399,2.5,216.41,216.27,4.4701]
[1734525316597,2.5,216.4,216.28,5.6623778]
[1734525317600,2.5,216.39,216.35,2.3113]
[1734525318099,2.5,216.39,216.28,8.1623778]
[1734525318304,2.5,216.39,216.33,2.3116]
[1734525318698,2.5,216.39,216.28,5.6623778]
[1734525319198,2.5,216.39,216.27,4.4701]
[1734525319392,2.3113,216.36,216.27,2.9527]
[1734525319597,2.5,216.39,216.27,2.9527]
[1734525321298,18.01387295,216.36,216.03,66.68]
[1734525321497,18.01387295,216.36,216.19,3.2096]
[1734525322399,18.01387295,216.36,216.22,5.60533427]
[1734525322598,2.5,216.35,216.22,5.60533427]
[1734525322999,2.3117,216.32,216.26,2.3123]
[1734525323403,2.5,216.35,216.22,5.60533427]
[1734525323606,2.3118,216.31,216.24,2.3125]
[1734525323802,2.5,216.3,216.22,5.60533427]
[1734525325705,2.312,216.29,216.22,5.60533427]
[1734525326004,2.5,216.3,216.19,3.2096]
[1734525327311,2.5,216.3,216.2,5.53034571]
[1734525327610,2.5,216.3,216.19,3.2096]
[1734525327810,2.3125,216.24,216.19,3.2096]
[1734525328010,2.5,216.23,216.19,3.2096]
[1734525328605,2.5,216.23,216.2,2.313]
[1734525328806,2.5,216.23,216.19,3.2096]
[1734525329510,2.5,216.25,216.19,3.2096]
[1734525330510,2.3121,216.28,216.22,2.3127]
[1734525330708,2.5,216.27,216.19,3.2096]
[1734525331009,2.5,216.28,216.21,2.3128]
[1734525331212,2.5,216.28,216.19,3.2096]
[1734525333515,2.3125,216.25,216.19,5.5226]
[1734525333709,2.5,216.28,216.19,5.5226]
[1734525333906,2.5,216.28,216.19,3.2096]
[1734525334311,2.3124,216.26,216.19,5.5227]
[1734525334511,2.5,216.28,216.19,5.5227]
[1734525335113,2.3125,216.25,216.19,5.5227]
[1734525335310,5.4387263,216.34,216.2,2.52]
[1734525335506,18.01387295,216.4,216.21,18.01387295]
[1734525335706,2.52,216.39,216.21,18.01387295]
[1734525335908,2.52,216.39,216.2,2.52]
[1734525336106,2.3119,216.3,216.25,2.3124]
[1734525336310,2.52,216.32,216.19,3.2096]
[1734525336507,2.52,216.31,216.2,0.85008067]
[1734525336815,2.52,216.3,216.19,3.2096]
[1734525337017,2.3121,216.28,216.23,2.3126]
[1734525337216,2.52,216.3,216.19,3.2096]
[1734525337713,2.52,216.3,216.2,0.85008547]
[1734525337915,2.52,216.3,216.19,3.2096]
[1734525338217,2.3121,216.29,216.23,2.3126]
[1734525338419,2.3121,216.29,216.19,3.2096]
[1734525338613,2.52,216.3,216.19,1.6111]
[1734525339116,2.52,216.3,216.22,2.3127]
[1734525339317,2.52,216.3,216.19,1.6111]
[1734525339718,2.3125,216.25,216.2,2.3129]
[1734525340319,2.52,216.3,216.2,2.3129]
[1734525340320,2.3126,216.24,216.2,2.3129]
[1734525340814,2.52,216.3,216.19,1.6111]
[1734525341011,2.3127,216.23,216.19,3.9241]
[1734525341316,11.29904694,216.22,216.1,1.37298]
[1734525341620,2.52,216.23,216.13,16.74352616]
[1734525342019,2.52,216.23,216.13,19.26352616]
[1734525342218,2.52,216.23,216.13,5.44447922]
[1734525342413,2.52,216.23,216.14,1.7115]
[1734525342814,11.29904694,216.28,216.14,1.7115]
[1734525343122,2.3123,216.26,216.21,2.3128]
[1734525343417,13.81904694,216.28,216.21,2.3128]
[1734525343819,2.3124,216.25,216.21,2.3128]
[1734525344014,13.81904694,216.28,216.16,2.52]
[1734525344316,13.81904694,216.28,216.14,3.394]
[1734525344620,2.3129,216.21,216.14,3.394]
[1734525345219,2.3129,216.21,216.16,2.3133]
[1734525345724,2.52,216.23,216.17,2.3133]
[1734525345923,4.8327,216.23,216.14,3.394]
[1734525346120,2.3127,216.23,216.14,3.394]
[1734525346419,2.3128,216.22,216.17,2.3132]
[1734525346621,2.52,216.25,216.15,11.29904694]
[1734525346823,2.52,216.29,216.15,11.29904694]
[1734525347024,2.3122,216.27,216.22,2.3127]
[1734525347226,11.29904694,216.34,216.18,13.81904694]
[1734525347424,2.3118,216.31,216.26,2.3123]
[1734525347624,2.3118,216.31,216.23,2.52]
[1734525347824,189.02211366,216.39,216.23,2.52]
[1734525347825,189.02211366,216.42,216.24,11.29904694]
[1734525348023,2.52,216.37,216.25,1.6258]
[1734525348228,2.52,216.37,216.31,2.3117]
[1734525348625,2.3115,216.34,216.3,2.3119]
[1734525349121,2.3115,216.34,216.3,2.3118]
[1734525349329,2.52,216.43,216.3,11.29904694]
[1734525349519,2.52,216.43,216.31,1.601]
[1734525350228,2.52,216.43,216.33,11.29904694]
[1734525351224,2.52,216.43,216.31,1.601]
[1734525351425,11.29904694,216.42,216.31,1.601]
[1734525351626,11.29904694,216.39,216.31,1.601]
[1734525351818,11.29904694,216.39,216.29,2.3119]
[1734525351819,2.52,216.38,216.29,2.3119]
[1734525352220,2.52,216.38,216.27,11.29904694]
[1734525352727,2.3114,216.36,216.27,11.29904694]
[1734525353331,2.3114,216.36,216.31,2.3118]
[1734525353825,2.52,216.38,216.28,5.42501751]
[1734525354022,2.52,216.38,216.33,2.3115]
[1734525354228,2.52,216.38,216.28,5.42501751]
[1734525354825,2.52,216.38,216.3,11.29904694]
[1734525355032,16.76179868,216.45,216.3,13.81904694]
[1734525355033,2.52,216.42,216.3,13.81904694]
[1734525355729,2.3111,216.38,216.3,13.81904694]
[1734525355928,2.52,216.42,216.3,13.81904694]
[1734525356129,2.311,216.39,216.3,11.29904694]
[1734525356330,13.81904694,216.42,216.29,2.52]
[1734525356527,11.29904694,216.39,216.26,1.6413]
[1734525356731,11.29904694,216.39,216.26,3.9535]
[1734525356932,11.29904694,216.39,216.26,1.6413]
[1734525357132,2.3117,216.32,216.28,2.3121]
[1734525357332,2.3117,216.32,216.26,1.6413]
[1734525358031,2.3117,216.32,216.27,2.3122]
[1734525358933,2.3117,216.32,216.28,2.3121]
[1734525359437,2.3118,216.31,216.27,2.3122]
[1734525359835,2.52,216.34,216.26,1.6413]
[1734525360129,2.52,216.34,216.26,12.94034694]
[1734525360530,2.3115,216.34,216.29,2.3119]
[1734525360731,2.3115,216.34,216.26,12.94034694]
[1734525360926,2.52,216.35,216.26,12.94034694]
[1734525361127,2.3115,216.34,216.26,12.94034694]
[1734525361835,4.8314,216.35,216.26,12.94034694]
[1734525362038,2.52,216.35,216.26,12.94034694]
[1734525362230,2.3111,216.38,216.29,11.29904694]
[1734525362633,2.52,216.4,216.35,2.3113]
[1734525362835,2.3108,216.41,216.3,2.52]
[1734525363135,2.52,216.43,216.32,11.29904694]
[1734525363437,2.3107,216.41,216.36,2.3112]
[1734525363636,2.3107,216.41,216.32,11.29904694]
[1734525363838,2.52,216.43,216.32,11.29904694]
[1734525364139,2.3107,216.41,216.32,11.29904694]
[1734525364536,2.5,216.43,216.29,11.29904694]
[1734525365135,2.3112,216.37,216.33,2.3115]
[1734525365339,2.5,216.43,216.29,11.29904694]
[1734525365731,2.5,216.43,216.32,11.29904694]
[1734525365934,2.5,216.44,216.35,11.29904694]
[1734525366138,2.5,216.44,216.38,11.29904694]
[1734525366338,2.5,216.48,216.38,11.29904694]
[1734525366834,2.3101,216.47,216.42,2.3106]
[1734525367038,2.5,216.48,216.38,11.29904694]
[1734525367435,2.3103,216.46,216.41,2.3106]
[1734525367740,2.5,216.48,216.41,2.3106]
[1734525368141,2.5,216.48,216.38,11.29904694]
[1734525368541,2.3106,216.43,216.38,11.29904694]
[1734525368745,2.3106,216.43,216.39,2.3109]
[1734525369543,2.5,216.43,216.36,1.7106]
[1734525369741,2.5,216.43,216.32,16.8794167]
[1734525369941,2.5,216.43,216.29,14.69924694]
[1734525370146,2.3111,216.38,216.33,2.3115]
[1734525370445,2.5,216.43,216.33,2.3115]
[1734525370743,2.3113,216.36,216.32,2.3117]
[1734525371746,4.8111,216.38,216.33,2.3116]
[1734525371940,2.5,216.38,216.29,14.69924694]
[1734525372148,2.5,216.38,216.3,5.45220656]
[1734525372346,2.3113,216.37,216.32,2.3117]
[1734525373145,2.5,216.38,216.32,2.3117]
[1734525373350,2.3113,216.36,216.32,2.3117]
[1734525374045,2.5,216.38,216.29,14.69924694]
[1734525374247,2.3114,216.35,216.31,2.3118]
[1734525374540,4.18728,216.54,216.33,11.29904694]
[1734525374746,4.18728,216.54,216.41,11.29904694]
[1734525374942,11.73284694,216.53,216.38,11.29904694]
[1734525375142,2.3106,216.43,216.38,11.29904694]
[1734525375641,2.3106,216.43,216.38,13.61004694]
[1734525375848,2.3106,216.43,216.38,11.29904694]
[1734525376047,2.3104,216.44,216.38,11.29904694]
[1734525376842,2.5,216.45,216.38,11.29904694]
[1734525376843,2.5,216.45,216.41,2.3107]
[1734525377047,2.5,216.48,216.38,11.29904694]
[1734525377444,2.5,216.48,216.35,11.29904694]
[1734525377648,11.29904694,216.47,216.34,1.6957]
[1734525377843,12.90514694,216.47,216.34,1.6957]
[1734525378547,12.90514694,216.47,216.32,11.29904694]
[1734525378548,11.29904694,216.44,216.32,11.29904694]
[1734525378748,2.5,216.43,216.29,20.11710276]
[1734525378949,4.2275,216.43,216.29,20.11710276]
[1734525379149,2.3113,216.36,216.31,2.3118]
[1734525379352,4.8113,216.36,216.31,2.3118]
[1734525379745,4.8113,216.36,216.29,20.11710276]
[1734525380051,4.8113,216.36,216.32,2.3117]
[1734525380349,4.811,216.39,216.32,11.29904694]
[1734525380547,2.5,216.39,216.29,20.11710276]
[1734525381651,2.3111,216.38,216.29,20.11710276]
[1734525382050,1.6061,216.47,216.32,11.29904694]
[1734525382250,2.5,216.46,216.35,11.29904694]
[1734525382452,2.5,216.46,216.36,1.6712]
[1734525382648,2.5,216.47,216.36,1.6712]
[1734525383255,2.5,216.47,216.38,11.29904694]
[1734525383547,2.5,216.49,216.38,11.29904694]
[1734525383742,2.5,216.49,216.39,1.7205]
[1734525383948,2.5,216.5,216.41,11.29904694]
[1734525384549,2.3098,216.5,216.45,2.3102]
[1734525386354,2.5,216.51,216.39,19.75937612]
[1734525386949,4.8097,216.51,216.39,19.75937612]
[1734525387145,2.5,216.51,216.39,19.75937612]
[1734525387562,2.3096,216.52,216.39,19.75937612]
[1734525387849,2.5,216.56,216.47,18.03887612]
[1734525388048,3.3361,216.6,216.53,2.3094]
[1734525388049,2.3087,216.6,216.53,2.3094]
[1734525388250,4.8087,216.6,216.53,2.3094]
[1734525388648,2.3087,216.6,216.53,2.3094]
[1734525388855,2.5,216.6,216.57,2.309]
[1734525389757,2.5,216.6,216.53,2.3094]
[1734525389956,2.5,216.6,216.51,18.03887612]
[1734525390158,3.255,216.66,216.52,2.5]
[1734525390457,2.5,216.65,216.52,2.5]
[1734525390860,2.3083,216.64,216.52,2.5]
[1734525391261,2.5,216.65,216.51,18.03887612]
[1734525391558,2.5,216.65,216.55,2.3092]
[1734525392153,2.5,216.65,216.52,2.5]
[1734525392154,2.3085,216.62,216.56,2.3091]
[1734525393560,2.3086,216.61,216.56,2.3091]
[1734525393955,2.5,216.65,216.58,2.3089]
[1734525394157,2.5,216.65,216.52,2.5]
[1734525394658,2.3087,216.6,216.54,2.3093]
[1734525394859,2.3087,216.6,216.52,2.5]
[1734525396263,2.3087,216.6,216.48,22.96127612]
[1734525396264,2.48,216.59,216.48,4.9224]
[1734525396484,2.48,216.58,216.48,4.9224]
[1734525396663,19.38089607,216.68,216.44,23.63233612]
[1734525396664,2.48,216.57,216.44,23.63233612]
[1734525396862,2.48,216.56,216.44,5.59346]
[1734525397064,2.48,216.55,216.44,5.59346]
[1734525397263,2.48,216.54,216.45,2.3103]
[1734525397561,2.3098,216.5,216.44,5.59346]
[1734525398360,2.3099,216.49,216.44,7.90386]
[1734525398555,2.3099,216.49,216.38,5.1516]
[1734525398556,2.48,216.51,216.39,2.48]
[1734525398762,2.48,216.51,216.38,25.67047612]
[1734525398958,2.3102,216.47,216.38,25.67047612]
[1734525399565,2.3102,216.47,216.43,5.58078321]
[1734525400756,2.31,216.49,216.44,2.3104]
[1734525400958,1.6532,216.59,216.43,5.58078321]
[1734525401267,2.48,216.55,216.43,5.58078321]
[1734525401467,2.3097,216.52,216.43,5.58078321]
[1734525402269,2.3093,216.54,216.43,5.58078321]
[1734525402575,2.48,216.58,216.46,18.03887612]
[1734525402762,2.48,216.58,216.47,5.135]
[1734525402958,2.3091,216.56,216.47,5.135]
[1734525403165,2.3091,216.56,216.51,2.3096]
[1734525403567,2.3091,216.56,216.52,2.3095]
[1734525404269,2.3091,216.56,216.47,5.135]
[1734525404462,2.3091,216.56,216.51,2.3096]
[1734525404965,2.3091,216.56,216.47,5.135]
[1734525404966,2.309,216.58,216.47,5.135]
[1734525405171,2.48,216.61,216.47,5.135]
[1734525405565,4.7886,216.61,216.56,2.3091]
[1734525405762,3.3435,216.66,216.51,2.48]
[1734525406068,3.3435,216.66,216.54,18.03887612]
[1734525406069,2.48,216.66,216.54,18.03887612]
[1734525406362,2.3084,216.64,216.54,18.03887612]
[1734525407474,2.3084,216.64,216.58,2.3088]
[1734525407772,2.3084,216.64,216.56,2.48]
[1734525407968,4.788,216.67,216.56,2.48]
[1734525408266,2.99121,216.69,216.58,18.03887612]
[1734525408470,0.51121,216.69,216.58,18.03887612]
[1734525408771,2.3079,216.68,216.58,18.03887612]
[1734525408968,0.51121,216.69,216.57,5.0562]
[1734525409274,2.48,216.68,216.57,7.5362]
[1734525409468,2.3083,216.64,216.6,2.3087]
[1734525409869,2.48,216.68,216.6,2.3087]
[1734525410073,2.3082,216.66,216.57,7.5362]
[1734525410272,2.48,216.68,216.57,7.5362]
[1734525410767,2.48,216.68,216.64,2.3082]
[1734525410972,2.48,216.68,216.59,18.03887612]
[1734525410973,0.51121,216.69,216.59,18.03887612]
[1734525411267,0.51121,216.69,216.61,5.58002426]
[1734525411469,0.51121,216.69,216.62,2.48]
[1734525412065,0.51121,216.69,216.63,11.25165017]
[1734525412272,0.51121,216.69,216.66,11.25165017]
[1734525412576,12.87245017,216.8,216.66,11.25165017]
[1734525412770,2.3069,216.77,216.67,3.4404]
[1734525412973,2.3069,216.77,216.67,5.9204]
[1734525413174,2.48,216.79,216.67,5.9204]
[1734525413370,2.48,216.79,216.72,2.3074]
[1734525414074,2.3073,216.73,216.68,2.3078]
[1734525414270,2.48,216.73,216.67,3.4404]
[1734525414465,2.48,216.73,216.62,17.99535796]
[1734525414877,2.3076,216.71,216.62,17.99535796]
[1734525415475,2.3076,216.71,216.66,2.308]
[1734525416175,2.48,216.73,216.62,17.99535796]
[1734525416776,2.3076,216.71,216.65,2.3081]
[1734525417375,2.3076,216.7,216.65,2.3081]
[1734525418176,2.3075,216.72,216.62,17.99535796]
[1734525418378,2.48,216.73,216.62,20.47535796]
[1734525419475,2.3076,216.7,216.62,20.47535796]
[1734525420181,2.3076,216.7,216.66,2.3081]
[1734525420381,2.3074,216.73,216.62,20.47535796]
[1734525420682,2.48,216.75,216.62,20.47535796]
[1734525421683,2.3073,216.73,216.62,20.47535796]
[1734525421982,2.48,216.75,216.66,17.99535796]
[1734525422180,2.3068,216.78,216.7,2.3075]
[1734525422380,2.48,216.79,216.68,2.48]
[1734525422778,1.5938,216.82,216.68,2.48]
[1734525422982,2.48,216.81,216.68,2.48]
[1734525423279,17.99535796,216.8,216.64,2.48]
[1734525423782,2.3077,216.7,216.65,2.3081]
[1734525424290,2.48,216.73,216.61,7.29392426]
[1734525425488,2.3083,216.65,216.61,7.88852426]
[1734525425778,17.99535796,216.76,216.6,3.4404]
[1734525425779,2.4,216.67,216.6,3.4404]
[1734525425991,2.3087,216.6,216.55,2.3091]
[1734525426178,2.4,216.65,216.5,5.1083]
[1734525426378,2.4,216.64,216.52,2.4]
[1734525426585,2.4,216.63,216.52,2.4]
[1734525426782,2.4,216.62,216.52,2.4]
[1734525426983,2.4,216.61,216.52,2.4]
[1734525427185,2.309,216.57,216.52,4.7095]
[1734525427385,2.4,216.6,216.5,3.3567]
[1734525427589,2.4,216.6,216.51,5.42374183]
[1734525428584,2.4,216.6,216.5,1.7164]
[1734525428782,2.4,216.6,216.48,5.56844147]
[1734525429081,2.4,216.6,216.45,1.7516]
[1734525429278,1.5848,216.59,216.45,1.7516]
[1734525429781,1.5848,216.59,216.43,2.3105]
[1734525429782,2.31,216.48,216.43,2.3105]
[1734525429981,2.4,216.5,216.41,2.4]
[1734525430182,2.4,216.51,216.41,2.4]
[1734525430590,2.3099,216.49,216.44,7.7740549]
[1734525430888,2.3099,216.49,216.44,5.4636549]
[1734525431086,2.4,216.51,216.44,5.4636549]
[1734525431286,2.3098,216.5,216.44,7.7740549]
[1734525431586,2.4,216.51,216.44,7.7740549]
[1734525432489,2.3099,216.49,216.44,7.7740549]
[1734525432690,2.4,216.51,216.4,20.39535796]
[1734525432987,2.3103,216.45,216.39,1.5946]
[1734525434388,2.3104,216.44,216.41,5.4843925]
[1734525434783,2.4,216.46,216.41,5.4843925]
[1734525434987,2.4,216.5,216.44,11.27757966]
[1734525435187,2.4,216.55,216.44,11.27757966]